fUSD/lending_fUSD_20240822
["ID","MTS","AMOUNT","RATE_DAILY","PERIOD"]
[335551708,1724322657361,-3826.31476696,0.00010999,2]
[335551709,1724322657370,-535.17,0.00010999,2]
[335551710,1724322657380,-535.17,0.00010999,2]
[335551711,1724322657389,-535.17,0.00010999,2]
[335551712,1724322657400,-535.17,0.00010999,2]
[335551713,1724322657410,-535.17,0.00010999,2]
[335551714,1724322657420,-535.17,0.00010999,2]
[335551715,1724322657431,-535.17,0.00010999,2]
[335551716,1724322657442,-535.17,0.00010999,2]
[335551717,1724322657451,-535.17,0.00010999,2]
[335551718,1724322657461,-535.17,0.00010999,2]
[335551719,1724322657472,-535.17,0.00010999,2]
[335551720,1724322657481,-535.17,0.00010999,2]
[335551721,1724322657490,-535.17,0.00010999,2]
[335551722,1724322657500,-535.17,0.00010999,2]
[335551723,1724322657511,-624.01,0.00010999,2]
[335551724,1724322657521,-535.17,0.00010999,2]
[335551725,1724322657531,-624.01,0.00010999,2]
[335551726,1724322657540,-535.17,0.00010999,2]
[335551727,1724322657550,-624.01,0.00010999,2]
[335551728,1724322657559,-535.17,0.00010999,2]
[335551729,1724322657568,-624.01,0.00010999,2]
[335551730,1724322657578,-535.17,0.00010999,2]
[335551731,1724322657587,-624.01,0.00010999,2]
[335551732,1724322657596,-624.01,0.00010999,2]
[335551733,1724322657605,-535.17,0.00010999,2]
[335551734,1724322657615,-624.01,0.00010999,2]
[335551735,1724322657624,-624.01,0.00010999,2]
[335551736,1724322657634,-535.17,0.00010999,2]
[335551737,1724322657644,-624.01,0.00010999,2]
[335551738,1724322657653,-535.17,0.00010999,2]
[335551739,1724322657663,-624.01,0.00010999,2]
[335551740,1724322657674,-535.17,0.00010999,2]
[335551741,1724322657684,-535.17,0.00010999,2]
[335551742,1724322657694,-624.01,0.00010999,2]
[335551743,1724322657703,-535.23,0.00010999,2]
[335551744,1724322657712,-624.01,0.00010999,2]
[335551745,1724322657721,-624.01,0.00010999,2]
[335551746,1724322657731,-624.01,0.00010999,2]
[335551747,1724322657740,-624.01,0.00010999,2]
[335551748,1724322657750,-624.01,0.00010999,2]
[335551749,1724322657764,-624.01,0.00010999,2]
[335551750,1724322657773,-624.01,0.00010999,2]
[335551751,1724322657783,-624.01,0.00010999,2]
[335551752,1724322657792,-624.01,0.00010999,2]
[335551753,1724322657802,-624.01,0.00010999,2]
[335551754,1724322657811,-624.01,0.00010999,2]
[335551755,1724322657821,-624.01,0.00010999,2]
[335551756,1724322657831,-505.4,0.00010999,2]
[335551757,1724322657841,-624.19809117,0.00010999,2]
[335551758,1724322657850,-500.0,0.00010999,2]
[335551759,1724322657860,-500.0,0.00010999,2]
[335551760,1724322657870,-500.0,0.00010999,2]
[335551761,1724322657880,-500.0,0.00010999,2]
[335551762,1724322657890,-600.40840648,0.00010999,2]
[335551763,1724322657899,-500.0,0.00010999,2]
[335551764,1724322657909,-431.40776576,0.00010999,2]
[335551765,1724322657918,-500.0,0.00010999,2]
[335551766,1724322657927,-500.0,0.00010999,2]
[335551767,1724322657937,-500.0,0.00010999,2]
[335551768,1724322657946,-257.94,0.00010999,2]
[335551769,1724322657955,-500.0,0.00010999,2]
[335551770,1724322657964,-500.0,0.00010999,2]
[335551771,1724322657974,-500.0,0.00010999,2]
[335551772,1724322657983,-500.0,0.00010999,2]
[335551773,1724322657992,-500.0,0.00010999,2]
[335551774,1724322658002,-500.0,0.00010999,2]
[335551775,1724322658011,-500.0,0.00010999,2]
[335551776,1724322658021,-500.0,0.00010999,2]
[335551777,1724322658030,-500.0,0.00010999,2]
[335551778,1724322658039,-500.0,0.00010999,2]
[335551779,1724322658048,-500.0,0.00010999,2]
[335551780,1724322658057,-500.0,0.00010999,2]
[335551781,1724322658066,-481.71,0.00010999,2]
[335551782,1724322658076,-500.0,0.00010999,2]
[335551783,1724322658085,-500.0,0.00010999,2]
[335551784,1724322658095,-500.0,0.00010999,2]
[335551785,1724322658105,-500.0,0.00010999,2]
[335551786,1724322658114,-500.0,0.00010999,2]
[335551787,1724322658125,-500.0,0.00010999,2]
[335551788,1724322658134,-500.0,0.00010999,2]
[335551789,1724322658143,-500.0,0.00010999,2]
[335551790,1724322658153,-500.0,0.00010999,2]
[335551791,1724322658162,-199.92,0.00010999,2]
[335551792,1724322658171,-500.0,0.00010999,2]
[335551793,1724322658180,-500.0,0.00010999,2]
[335551794,1724322658189,-500.0,0.00010999,2]
[335551795,1724322658306,-500.0,0.00010999,2]
[335551796,1724322658315,-500.0,0.00010999,2]
[335551797,1724322658324,-500.0,0.00010999,2]
[335551798,1724322658333,-500.0,0.00010999,2]
[335551799,1724322658342,-500.0,0.00010999,2]
[335551800,1724322658351,-345.30217835,0.00010999,2]
[335551801,1724322658360,-500.0,0.00010999,2]
[335551802,1724322658369,-586.67311929,0.00010999,2]
[335551803,1724322658379,-500.0,0.00010999,2]
[335551804,1724322658388,-523.8615503,0.00010999,2]
[335551805,1724322658397,-500.0,0.00010999,2]
[335551806,1724322658406,-500.0,0.00010999,2]
[335551807,1724322658415,-500.0,0.00010999,2]
[335551808,1724322658424,-500.0,0.00010999,2]
[335551809,1724322658433,-500.0,0.00010999,2]
[335551810,1724322658442,-500.0,0.00010999,2]
[335551811,1724322658451,-500.0,0.00010999,2]
[335551812,1724322658460,-500.0,0.00010999,2]
[335551813,1724322658469,-500.0,0.00010999,2]
[335551814,1724322658478,-500.0,0.00010999,2]
[335551815,1724322658486,-448.66,0.00010999,2]
[335551816,1724322658495,-500.0,0.00010999,2]
[335551817,1724322658504,-500.0,0.00010999,2]
[335551818,1724322658513,-500.0,0.00010999,2]
[335551819,1724322658523,-500.0,0.00010999,2]
[335551820,1724322658532,-500.0,0.00010999,2]
[335551821,1724322658541,-500.0,0.00010999,2]
[335551822,1724322658550,-500.0,0.00010999,2]
[335551823,1724322658559,-500.0,0.00010999,2]
[335551824,1724322658568,-500.0,0.00010999,2]
[335551825,1724322658577,-500.0,0.00010999,2]
[335551826,1724322658586,-500.0,0.00010999,2]
[335551827,1724322658596,-511.54996748,0.00010999,2]
[335551828,1724322658605,-500.0,0.00010999,2]
[335551829,1724322658614,-500.0,0.00010999,2]
[335551830,1724322658623,-242.6063882,0.00010999,2]
[335551831,1724322658632,-500.0,0.00010999,2]
[335551832,1724322658641,-500.0,0.00010999,2]
[335551833,1724322658650,-500.0,0.00010999,2]
[335551834,1724322658659,-500.0,0.00010999,2]
[335551835,1724322658668,-442.19337834,0.00010999,2]
[335551836,1724322658677,-500.0,0.00010999,2]
[335551837,1724322658687,-500.0,0.00010999,2]
[335551838,1724322658696,-500.0,0.00010999,2]
[335551839,1724322658705,-500.0,0.00010999,2]
[335551840,1724322658714,-500.0,0.00010999,2]
[335551841,1724322658723,-500.0,0.00010999,2]
[335551842,1724322658732,-500.0,0.00010999,2]
[335551843,1724322658742,-500.0,0.00010999,2]
[335551844,1724322658753,-500.0,0.00010999,2]
[335551845,1724322658765,-500.0,0.00010999,2]
[335551846,1724322658775,-500.0,0.00010999,2]
[335551847,1724322658785,-500.0,0.00010999,2]
[335551848,1724322658794,-500.0,0.00010999,2]
[335551849,1724322658805,-500.0,0.00010999,2]
[335551850,1724322658814,-257.12,0.00010999,2]
[335551851,1724322658824,-328.41449186,0.00010999,2]
[335551852,1724322658834,-281.52166844,0.00010999,2]
[335551853,1724322658843,-469.01523212,0.00010999,2]
[335551854,1724322658853,-698.49,0.00010999,2]
[335551855,1724322658862,-698.49,0.00010999,2]
[335551856,1724322658872,-698.49,0.00010999,2]
[335551857,1724322658883,-698.49,0.00010999,2]
[335551858,1724322658893,-698.49,0.00010999,2]
[335551859,1724322658903,-698.49,0.00010999,2]
[335551860,1724322658912,-698.49,0.00010999,2]
[335551861,1724322658921,-698.49,0.00010999,2]
[335551862,1724322658931,-698.49,0.00010999,2]
[335551863,1724322658939,-698.49,0.00010999,2]
[335551864,1724322658949,-698.49,0.00010999,2]
[335551865,1724322658959,-698.49,0.00010999,2]
[335551866,1724322658968,-698.49,0.00010999,2]
[335551867,1724322658977,-698.49,0.00010999,2]
[335551868,1724322658986,-698.49,0.00010999,2]
[335551869,1724322658995,-698.49,0.00010999,2]
[335551870,1724322659004,-698.49,0.00010999,2]
[335551871,1724322659014,-698.49,0.00010999,2]
[335551872,1724322659024,-698.49,0.00010999,2]
[335551873,1724322659034,-698.49,0.00010999,2]
[335551874,1724322659044,-698.68,0.00010999,2]
[335551875,1724322659053,-500.0,0.00010999,2]
[335551876,1724322659063,-361.00121014,0.00010999,2]
[335551877,1724322659072,-500.0,0.00010999,2]
[335551878,1724322659082,-500.0,0.00010999,2]
[335551879,1724322659091,-500.0,0.00010999,2]
[335551880,1724322659101,-500.0,0.00010999,2]
[335551881,1724322659111,-500.0,0.00010999,2]
[335551882,1724322659120,-500.0,0.00010999,2]
[335551883,1724322659132,-500.0,0.00010999,2]
[335551884,1724322659141,-500.0,0.00010999,2]
[335551885,1724322659151,-458.44,0.00010999,2]
[335551886,1724322659161,-500.0,0.00010999,2]
[335551887,1724322659171,-500.0,0.00010999,2]
[335551888,1724322659180,-500.0,0.00010999,2]
[335551889,1724322659190,-500.0,0.00010999,2]
[335551890,1724322659200,-500.0,0.00010999,2]
[335551891,1724322659209,-500.0,0.00010999,2]
[335551892,1724322659219,-500.0,0.00010999,2]
[335551893,1724322659229,-500.0,0.00010999,2]
[335551894,1724322659238,-343.93944703,0.00010999,2]
[335551895,1724322659248,-500.0,0.00010999,2]
[335551896,1724322659258,-500.0,0.00010999,2]
[335551897,1724322659267,-500.0,0.00010999,2]
[335551898,1724322659277,-500.0,0.00010999,2]
[335551899,1724322659286,-500.0,0.00010999,2]
[335551900,1724322659296,-500.0,0.00010999,2]
[335551901,1724322659305,-500.0,0.00010999,2]
[335551902,1724322659315,-592.3,0.00010999,2]
[335551903,1724322659324,-500.0,0.00010999,2]
[335551904,1724322659334,-500.0,0.00010999,2]
[335551905,1724322659345,-500.0,0.00010999,2]
[335551906,1724322659354,-500.0,0.00010999,2]
[335551907,1724322659364,-500.0,0.00010999,2]
[335551908,1724322659374,-500.0,0.00010999,2]
[335551909,1724322659383,-500.0,0.00010999,2]
[335551910,1724322659392,-500.0,0.00010999,2]
[335551911,1724322659402,-500.0,0.00010999,2]
[335551912,1724322659411,-498.14637493,0.00010999,2]
[335551913,1724322659420,-465.13484577,0.00010999,2]
[335551914,1724322659430,-500.0,0.00010999,2]
[335551915,1724322659439,-500.0,0.00010999,2]
[335551916,1724322659448,-500.0,0.00010999,2]
[335551917,1724322659457,-500.0,0.00010999,2]
[335551918,1724322659467,-171.6,0.00010999,2]
[335551919,1724322659476,-500.0,0.00010999,2]
[335551920,1724322659485,-500.0,0.00010999,2]
[335551921,1724322659495,-231.04,0.00010999,2]
[335551922,1724322659504,-500.0,0.00010999,2]
[335551923,1724322659513,-500.0,0.00010999,2]
[335551924,1724322659522,-322.4,0.00010999,2]
[335551925,1724322659531,-150.0,0.00010999,2]
[335551926,1724322659540,-150.51745403,0.00010999,7]
[335551927,1724322659549,-500.0,0.00010999,2]
[335551928,1724322659559,-500.0,0.00010999,2]
[335551929,1724322659568,-500.0,0.00010999,2]
[335551930,1724322659577,-500.0,0.00010999,2]
[335551931,1724322659586,-500.0,0.00010999,2]
[335551932,1724322659595,-500.0,0.00010999,2]
[335551933,1724322659603,-500.0,0.00010999,2]
[335551934,1724322659613,-535.39809314,0.00010999,2]
[335551935,1724322659622,-235311.44521481,0.00010999,2]
[335551936,1724322659632,-520.73,0.00010999,2]
[335551937,1724322659642,-520.73,0.00010999,2]
[335551938,1724322659650,-520.73,0.00010999,2]
[335551939,1724322659660,-520.73,0.00010999,2]
[335551940,1724322659669,-520.73,0.00010999,2]
[335551941,1724322659679,-520.73,0.00010999,2]
[335551942,1724322659688,-520.73,0.00010999,2]
[335551943,1724322659697,-520.73,0.00010999,2]
[335551944,1724322659706,-520.73,0.00010999,2]
[335551945,1724322659716,-520.73,0.00010999,2]
[335551946,1724322659725,-520.73,0.00010999,2]
[335551947,1724322659734,-520.73,0.00010999,2]
[335551948,1724322659743,-520.73,0.00010999,2]
[335551949,1724322659753,-520.77289438,0.00010999,2]
[335551950,1724322659766,-514.40011554,0.00010999,2]
[335551951,1724322659776,-4036834.48350863,0.00011,2]
[335551952,1724322660102,-496.07624443,0.00011,2]
[335551953,1724322660114,-26562.30521915,0.00011,2]
[335551954,1724322660135,-5427.19204843,0.00011,2]
[335551955,1724322660147,-4439.59627426,0.00011,2]
[335551956,1724322660159,-1226.66149548,0.00011,2]
[335551957,1724322660174,-1060.86500547,0.00011,2]
[335551958,1724322660185,-599.16155238,0.00011,2]
[335551959,1724322660476,-563.30038855,0.00010789,2]
[335551960,1724322660485,-500.0,0.00010789,2]
[335551961,1724322660495,-500.0,0.00010789,2]
[335551962,1724322660506,-500.0,0.00010789,2]
[335551963,1724322660515,-285.69843677,0.00010789,2]
[335551964,1724322660526,-30465.8021986,0.00011,2]
[335551965,1724322661015,-1138.0,0.00010879,2]
[335551966,1724322661025,-2510.9525255,0.00011,2]
[335551967,1724322661037,-6121.81936209,0.00011,2]
[335551968,1724322703186,454.06,8.475e-05,2]
[335551970,1724322774429,500.0,8.275e-05,2]
[335551976,1724322821086,500.0,8.275e-05,2]
[335551983,1724322858307,195.32,9.768e-05,2]
[335551996,1724322879618,500.0,8.275e-05,2]
[335551998,1724322937369,600.0,9.9e-05,3]
[335552003,1724323016490,-710.0,0.000128,10]
[335552004,1724323050617,500.0,8.964e-05,2]
[335552005,1724323058570,500.0,8.964e-05,2]
[335552006,1724323070765,500.0,8.964e-05,2]
[335552007,1724323094383,500.0,8.964e-05,2]
[335552008,1724323114907,-4800.0,0.000128,10]
[335552010,1724323182158,454.7,8.219e-05,2]
[335552012,1724323205172,261.0,9.583e-05,2]
[335552014,1724323244530,288.0,9.577e-05,2]
[335552015,1724323249861,420.75566012,9.899e-05,2]
[335552017,1724323283000,353.51434234,9.899e-05,2]
[335552018,1724323295916,203.77747582,9.899e-05,2]
[335552019,1724323299188,307.90693662,9.899e-05,2]
[335552020,1724323322921,1500.0,9.899e-05,2]
[335552021,1724323333918,536.75723948,9.899e-05,2]
[335552022,1724323366639,1298.71692182,9.899e-05,2]
[335552023,1724323398754,175.81263979,9.899e-05,2]
[335552024,1724323418447,820.94949019,9.899e-05,2]
[335552025,1724323424592,250.0,9.666e-05,2]
[335552026,1724323454913,176.28,9.622e-05,2]
[335552030,1724323608092,347.122483,9.893e-05,2]
[335552031,1724323611283,1091.8,9.759e-05,2]
[335552032,1724323648587,600.0,9.9e-05,3]
[335552053,1724323783822,769.6,9.544e-05,2]
[335552054,1724323812375,155.0,9.899e-05,2]
[335552055,1724323832170,-297.99594133,9.908e-05,2]
[335552056,1724323832185,-2.00405867,9.908e-05,2]
[335552057,1724323832195,-5267.58081462,9.909e-05,2]
[335552058,1724323832207,-7392.51790468,9.909e-05,2]
[335552059,1724323832221,-251.88644517,9.909e-05,2]
[335552060,1724323832233,-3256.74546623,9.909e-05,2]
[335552061,1724323832412,-3579.35941527,9.909e-05,2]
[335552062,1724323832426,-429.50734631,9.909e-05,2]
[335552063,1724323832435,-150.0,9.973e-05,2]
[335552064,1724323832444,-150.0,9.999e-05,2]
[335552065,1724323832453,-198.80483197,9.999e-05,2]
[335552066,1724323832462,-477.15433899,9.999e-05,2]
[335552067,1724323832472,-179.62191135,9.999e-05,2]
[335552068,1724323832481,-1959.59337993,0.0001,2]
[335552069,1724323832490,-1050.0,0.0001,2]
[335552070,1724323832499,-2538.984797,0.0001,2]
[335552071,1724323832510,-261.15578167,0.0001,2]
[335552072,1724323832521,-517.85068696,0.0001,2]
[335552073,1724323832532,-9784.42353044,0.0001,2]
[335552074,1724323832543,-986.3300629,0.0001,2]
[335552075,1724323832553,-2352.8943779,0.0001,2]
[335552076,1724323832562,-856.8755592,0.0001,2]
[335552077,1724323832574,-159.1244408,0.0001,2]
[335552079,1724323832583,-1300.0,0.0001,3]
[335552080,1724323832592,-2216.03625418,0.00010017,2]
[335552082,1724323832603,-462.85374582,0.00010017,2]
[335552083,1724323832612,-182.05310819,0.00010017,2]
[335552084,1724323832623,-100.78689181,0.00010017,2]
[335552085,1724323832632,-335.85484364,0.00010017,2]
[335552086,1724323832665,-227.99515636,0.00010017,2]
[335552087,1724323832674,-72.30484364,0.00010097,2]
[335552088,1724323832685,-138.21515636,0.00010097,2]
[335552089,1724323832694,-150.99,0.00010097,2]
[335552090,1724323832703,-1900.0,0.000101,3]
[335552091,1724323832712,-2600.0,0.000102,3]
[335552092,1724323832721,-150.99,0.000102,2]
[335552093,1724323832730,-498.19863962,0.000102,2]
[335552094,1724323832741,-1.79136038,0.000102,2]
[335552095,1724323832750,-815.44,0.000102,2]
[335552096,1724323832759,-299.99,0.000102,2]
[335552097,1724323832768,-543.96462522,0.000103,3]
[335552098,1724323832779,-341.34701288,0.000103,3]
[335552099,1724323832790,-407.73214544,0.000103,3]
[335552100,1724323832801,-2006.95621646,0.000103,3]
[335552101,1724323832810,-5064.91531766,0.00010351,2]
[335552102,1724323832819,-10000.0,0.00010361,2]
[335552103,1724323832829,-600.0,0.000104,3]
[335552104,1724323832838,-454.7,0.00010454,2]
[335552105,1724323832847,-600.0,0.000105,3]
[335552106,1724323832856,-1784.5465,0.0001059,2]
[335552107,1724323832866,-2500.0,0.0001059,2]
[335552108,1724323832875,-600.0,0.000106,3]
[335552109,1724323832884,-1210.0,0.000106,2]
[335552110,1724323832893,-402.0441,0.0001069,2]
[335552111,1724323832902,-9839.43504468,0.0001069,2]
[335552114,1724323838322,-426.35735425,0.00010097,2]
[335552115,1724323838334,-8852.50867277,0.00010097,2]
[335552116,1724323838344,-6779.8597245,0.00010361,2]
[335552117,1724323838354,-2368.10175532,0.0001069,2]
[335552118,1724323838363,-10118.64400051,0.0001069,2]
[335552119,1724323838375,-5655.64646499,0.0001069,2]
[335552120,1724323838386,-7005.27855021,0.0001069,2]
[335552121,1724323838401,-6430.39699736,0.0001069,2]
[335552122,1724323838413,-452.76,0.0001069,2]
[335552123,1724323838423,-590.05754824,0.0001069,2]
[335552124,1724323838435,-1173.65274454,0.0001069,2]
[335552125,1724323838446,-7544.50302701,0.0001069,2]
[335552126,1724323838459,-12420.1932863,0.0001069,2]
[335552127,1724323838496,-1414.5,0.0001069,2]
[335552128,1724323838534,-563.85925673,0.0001069,2]
[335552129,1724323838545,-1829.12418851,0.0001069,2]
[335552131,1724323838682,-362.86362717,0.0001069,2]
[335552133,1724323838693,-257.82237684,0.0001069,2]
[335552137,1724323838723,-117.93186858,0.0001069,2]
[335552139,1724323838734,-3071.9316,0.0001069,2]
[335552149,1724323840319,-2023.70094014,0.0001069,2]
[335552150,1724323840331,-3374.1020552,0.0001069,2]
[335552151,1724323840459,-35593.03146767,0.0001069,2]
[335552152,1724323840469,-2537.1839102,0.00010699,2]
[335552153,1724323840478,-5605.2324912,0.00010699,2]
[335552154,1724323840490,-600.0,0.000107,3]
[335552155,1724323840501,-1075.68439056,0.00010713,2]
[335552156,1724323840510,-769.6,0.00010737,2]
[335552157,1724323840519,-288.0,0.00010774,2]
[335552158,1724323840529,-500.0,0.00010788,2]
[335552159,1724323840538,-500.0,0.00010788,2]
[335552160,1724323840547,-500.0,0.00010788,2]
[335552161,1724323840556,-500.0,0.00010788,2]
[335552162,1724323840566,-150.0,0.00010788,2]
[335552163,1724323840575,-500.0,0.00010788,2]
[335552164,1724323840585,-500.0,0.00010788,2]
[335552165,1724323840594,-513.89558918,0.00010788,2]
[335552166,1724323840603,-501.01137996,0.00010788,2]
[335552167,1724323840612,-515.28124494,0.00010788,2]
[335552168,1724323840621,-500.0,0.00010788,2]
[335552169,1724323840631,-500.0,0.00010788,2]
[335552170,1724323840640,-500.0,0.00010788,2]
[335552171,1724323840649,-500.0,0.00010788,2]
[335552172,1724323840658,-500.0,0.00010788,2]
[335552173,1724323840668,-500.0,0.00010788,2]
[335552174,1724323840677,-500.0,0.00010788,2]
[335552175,1724323840686,-500.0,0.00010788,2]
[335552176,1724323840695,-525.71847962,0.00010788,2]
[335552177,1724323840704,-526.60792658,0.00010788,2]
[335552178,1724323840714,-526.59168512,0.00010788,2]
[335552179,1724323840722,-509.40278361,0.00010788,2]
[335552180,1724323840732,-509.32271729,0.00010788,2]
[335552181,1724323840742,-551.59924657,0.00010788,2]
[335552182,1724323840751,-506.63526021,0.00010788,2]
[335552183,1724323840759,-503.957174,0.00010788,2]
[335552184,1724323840768,-509.53144535,0.00010788,2]
[335552185,1724323840779,-527.59799076,0.00010788,2]
[335552186,1724323840787,-512.68866243,0.00010788,2]
[335552187,1724323840796,-515.12238787,0.00010788,2]
[335552188,1724323840805,-508.748586,0.00010788,2]
[335552189,1724323840814,-500.0,0.00010788,2]
[335552190,1724323840823,-519.66153294,0.00010788,2]
[335552191,1724323840832,-505.45798422,0.00010788,2]
[335552192,1724323840842,-524.10111143,0.00010788,2]
[335552193,1724323840850,-527.18550191,0.00010788,2]
[335552194,1724323840860,-531.4246382,0.00010788,2]
[335552195,1724323840870,-521.33150609,0.00010788,2]
[335552196,1724323840880,-500.0,0.00010788,2]
[335552197,1724323840889,-518.08865891,0.00010788,2]
[335552198,1724323840898,-500.0,0.00010788,2]
[335552199,1724323840908,-529.04368476,0.00010788,2]
[335552200,1724323840917,-508.64032701,0.00010788,2]
[335552201,1724323840925,-543.9101318,0.00010788,2]
[335552202,1724323840934,-510.92826771,0.00010788,2]
[335552203,1724323840943,-509.53296962,0.00010788,2]
[335552204,1724323840952,-527.24644136,0.00010788,2]
[335552205,1724323840961,-511.89807339,0.00010788,2]
[335552206,1724323840971,-526.4356642,0.00010788,2]
[335552207,1724323840980,-506.52650027,0.00010788,2]
[335552208,1724323840989,-516.60281457,0.00010788,2]
[335552209,1724323840999,-500.0,0.00010788,2]
[335552210,1724323841008,-508.36019354,0.00010788,2]
[335552211,1724323841017,-519.10412078,0.00010788,2]
[335552212,1724323841026,-513.77619856,0.00010788,2]
[335552213,1724323841035,-500.0,0.00010788,2]
[335552214,1724323841045,-534.13207488,0.00010788,2]
[335552215,1724323841054,-518.93179044,0.00010788,2]
[335552216,1724323841063,-500.0,0.00010788,2]
[335552217,1724323841072,-513.23837449,0.00010788,2]
[335552218,1724323841081,-507.41416905,0.00010788,2]
[335552219,1724323841092,-466.5488281,0.00010788,2]
[335552220,1724323841101,-525.61767959,0.00010788,2]
[335552221,1724323841110,-515.01660814,0.00010788,2]
[335552222,1724323841119,-522.29376895,0.00010788,2]
[335552223,1724323841128,-520.32925844,0.00010788,2]
[335552224,1724323841137,-514.74732607,0.00010788,2]
[335552225,1724323841146,-526.93501009,0.00010788,2]
[335552226,1724323841156,-515.17787189,0.00010788,2]
[335552227,1724323841165,-485.81941399,0.00010788,2]
[335552228,1724323841174,-500.0,0.00010788,2]
[335552229,1724323841187,-510.43668409,0.00010788,2]
[335552230,1724323841196,-502.7834391,0.00010788,2]
[335552231,1724323841205,-511.1278783,0.00010788,2]
[335552232,1724323841214,-511.67416363,0.00010788,2]
[335552233,1724323841223,-525.55228178,0.00010788,2]
[335552234,1724323841232,-525.71377124,0.00010788,2]
[335552235,1724323841241,-504.99057977,0.00010788,2]
[335552236,1724323841250,-509.20178241,0.00010788,2]
[335552237,1724323841262,-516.69135641,0.00010788,2]
[335552238,1724323841271,-510.53621416,0.00010788,2]
[335552239,1724323841280,-529.41361368,0.00010788,2]
[335552240,1724323841289,-601.40467528,0.00010788,2]
[335552241,1724323841298,-519.35680362,0.00010788,2]
[335552242,1724323841307,-510.07636386,0.00010788,2]
[335552243,1724323841316,-515.11067117,0.00010788,2]
[335552244,1724323841325,-513.32532752,0.00010788,2]
[335552245,1724323841334,-521.45241238,0.00010788,2]
[335552246,1724323841344,-500.0,0.00010788,2]
[335552247,1724323841353,-496.16735774,0.00010788,2]
[335552248,1724323841362,-511.68845578,0.00010788,2]
[335552249,1724323841371,-634.59934842,0.00010788,2]
[335552250,1724323841380,-515.82837169,0.00010788,2]
[335552251,1724323841389,-514.75021393,0.00010788,2]
[335552252,1724323841398,-521.84768813,0.00010788,2]
[335552253,1724323841407,-504.74428292,0.00010788,2]
[335552254,1724323841416,-506.3077352,0.00010788,2]
[335552255,1724323841425,-520.03512783,0.00010788,2]
[335552256,1724323841434,-516.00034438,0.00010788,2]
[335552257,1724323841443,-513.7287017,0.00010788,2]
[335552258,1724323841452,-518.85350942,0.00010788,2]
[335552259,1724323841461,-500.0,0.00010788,2]
[335552260,1724323841471,-518.68376066,0.00010788,2]
[335552261,1724323841479,-507.35069858,0.00010788,2]
[335552262,1724323841488,-521.21138051,0.00010788,2]
[335552263,1724323841497,-524.98519807,0.00010788,2]
[335552264,1724323841506,-511.45881077,0.00010788,2]
[335552265,1724323841515,-509.17864741,0.00010788,2]
[335552266,1724323841524,-500.0,0.00010788,2]
[335552267,1724323841534,-518.23109037,0.00010788,2]
[335552268,1724323841543,-500.0,0.00010788,2]
[335552269,1724323841552,-506.18481191,0.00010788,2]
[335552270,1724323841561,-516.01523571,0.00010788,2]
[335552271,1724323841570,-500.0,0.00010788,2]
[335552272,1724323841579,-500.0,0.00010788,2]
[335552273,1724323841588,-507.10420354,0.00010788,2]
[335552274,1724323841597,-500.0,0.00010788,2]
[335552275,1724323841606,-500.0,0.00010788,2]
[335552276,1724323841615,-500.0,0.00010788,2]
[335552277,1724323841625,-500.0,0.00010788,2]
[335552278,1724323841634,-503.48582222,0.00010788,2]
[335552279,1724323841643,-500.0,0.00010788,2]
[335552280,1724323841652,-500.0,0.00010788,2]
[335552281,1724323841661,-500.0,0.00010788,2]
[335552282,1724323841670,-533.5532177,0.00010788,2]